[Event "Late-Titled-Tuesday-Blitz-March-26-2024"]
[Site "Chess.com"]
[Date "2024.03.26"]
[Round "11"]
[White "Genghis_K"]
[Black "Adar_07"]
[Result "0-1"]
[WhiteElo "2906"]
[BlackElo "2796"]
[TimeControl "180+1"]
[EndTime "16:05:16 PDT"]
[Termination "Adar_07 won by resignation"]

1. e4 {[%clk 0:02:52.6]} 1... c5 {[%clk 0:02:55.7]} 2. Nf3 {[%clk 0:02:53]} 2...
Nc6 {[%clk 0:02:56]} 3. Bb5 {[%clk 0:02:52.8]} 3... g6 {[%clk 0:02:51.7]} 4. O-O
{[%clk 0:02:52.9]} 4... Bg7 {[%clk 0:02:51.6]} 5. c3 {[%clk 0:02:52.6]} 5... Nf6
{[%clk 0:02:50.9]} 6. Re1 {[%clk 0:02:52.8]} 6... O-O {[%clk 0:02:50.9]} 7. d4
{[%clk 0:02:53.3]} 7... cxd4 {[%clk 0:02:51.2]} 8. cxd4 {[%clk 0:02:54.2]} 8...
d5 {[%clk 0:02:51.2]} 9. e5 {[%clk 0:02:54.8]} 9... Ne8 {[%clk 0:02:50.3]} 10.
Nc3 {[%clk 0:02:47.1]} 10... Bg4 {[%clk 0:02:50.1]} 11. Bxc6 {[%clk 0:02:46.2]}
11... bxc6 {[%clk 0:02:49.4]} 12. h3 {[%clk 0:02:46]} 12... Bxf3 {[%clk
0:02:49.1]} 13. Qxf3 {[%clk 0:02:46.7]} 13... Nc7 {[%clk 0:02:49.1]} 14. Be3
{[%clk 0:02:43.9]} 14... Rb8 {[%clk 0:02:48.3]} 15. b3 {[%clk 0:02:43]} 15... c5
{[%clk 0:02:43.5]} 16. dxc5 {[%clk 0:02:38.4]} 16... Bxe5 {[%clk 0:02:43.5]} 17.
Bh6 {[%clk 0:02:38.3]} 17... Bg7 {[%clk 0:02:38.1]} 18. Bxg7 {[%clk 0:02:37.8]}
18... Kxg7 {[%clk 0:02:39]} 19. Rad1 {[%clk 0:02:37.8]} 19... e6 {[%clk
0:02:39.3]} 20. Ne4 {[%clk 0:02:37.7]} 20... dxe4 {[%clk 0:02:38]} 21. Qc3+
{[%clk 0:02:24.3]} 21... Qf6 {[%clk 0:02:37.3]} 22. Qxf6+ {[%clk 0:02:25.1]}
22... Kxf6 {[%clk 0:02:38.2]} 23. Rd7 {[%clk 0:02:25.5]} 23... Rbc8 {[%clk
0:02:37.3]} 24. Rxe4 {[%clk 0:02:23.3]} 24... Nd5 {[%clk 0:02:27.7]} 25. Rc4
{[%clk 0:02:02.6]} 25... Rc7 {[%clk 0:02:21.3]} 26. Rf4+ {[%clk 0:02:01.4]}
26... Ke5 {[%clk 0:02:12]} 27. Rxc7 {[%clk 0:01:58.8]} 27... Nxc7 {[%clk
0:02:12.9]} 28. Rb4 {[%clk 0:01:59.4]} 28... Kd5 {[%clk 0:02:09.8]} 29. Rb7
{[%clk 0:01:56.6]} 29... Kc6 {[%clk 0:02:02.6]} 30. Rxa7 {[%clk 0:01:56.1]}
30... Ra8 {[%clk 0:02:03.3]} 31. Rxa8 {[%clk 0:01:49.5]} 31... Nxa8 {[%clk
0:02:04.2]} 32. g4 {[%clk 0:01:32.3]} 32... Kxc5 {[%clk 0:02:05.1]} 33. Kg2
{[%clk 0:01:33]} 33... Nc7 {[%clk 0:01:59.4]} 34. Kf3 {[%clk 0:01:33.9]} 34...
Nd5 {[%clk 0:01:56.2]} 35. Ke4 {[%clk 0:01:34.8]} 35... f6 {[%clk 0:01:56.6]}
36. a3 {[%clk 0:01:31.5]} 36... Nc3+ {[%clk 0:01:49.2]} 37. Kd3 {[%clk
0:01:29.3]} 37... Nb5 {[%clk 0:01:46.8]} 38. a4 {[%clk 0:01:29.1]} 38... Nd6
{[%clk 0:01:44.8]} 39. f3 {[%clk 0:01:24.2]} 39... Kb4 {[%clk 0:01:43.9]} 40.
Kd4 {[%clk 0:01:21.2]} 40... Nf7 {[%clk 0:01:42.1]} 41. a5 {[%clk 0:01:17.4]}
41... Kxa5 {[%clk 0:01:41.9]} 42. Kc5 {[%clk 0:01:17.6]} 42... Ka6 {[%clk
0:01:36.3]} 43. Kc6 {[%clk 0:01:13.2]} 43... Ne5+ {[%clk 0:01:00.5]} 44. Kd6
{[%clk 0:01:09.8]} 44... Nxf3 {[%clk 0:01:00.8]} 45. Kxe6 {[%clk 0:01:10.3]}
45... f5 {[%clk 0:01:01]} 46. gxf5 {[%clk 0:01:03.1]} 46... Nd4+ {[%clk
0:01:00.8]} 47. Kd5 {[%clk 0:01:03.7]} 47... Nxf5 {[%clk 0:00:59.8]} 48. Kc6
{[%clk 0:01:04.5]} 48... Nd4+ {[%clk 0:00:59.8]} 49. Kd5 {[%clk 0:00:54.3]}
49... Nxb3 {[%clk 0:00:59.8]} 50. Ke5 {[%clk 0:00:50.3]} 50... Nd2 {[%clk
0:00:44.6]} 51. Kf6 {[%clk 0:00:43.7]} 51... Nf3 {[%clk 0:00:14.8]} 52. Kg7
{[%clk 0:00:44]} 52... g5 {[%clk 0:00:09.8]} 53. Kxh7 {[%clk 0:00:44.1]} 53...
Kb5 {[%clk 0:00:05.4]} 54. Kg6 {[%clk 0:00:44.7]} 54... Kc4 {[%clk 0:00:05.6]}
55. Kf5 {[%clk 0:00:45.4]} 55... Kd4 {[%clk 0:00:05]} 56. Kg4 {[%clk 0:00:41]}
56... Ke4 {[%clk 0:00:05.6]} 57. Kg3 {[%clk 0:00:41.3]} 57... Ne5 {[%clk
0:00:04.1]} 58. Kg2 {[%clk 0:00:24.7]} 58... Kf4 {[%clk 0:00:03.6]} 59. Kf2
{[%clk 0:00:25.4]} 59... Ng6 {[%clk 0:00:04]} 60. Kg2 {[%clk 0:00:25.1]} 60...
Nh4+ {[%clk 0:00:04.9]} 61. Kf2 {[%clk 0:00:25.8]} 61... Nf5 {[%clk 0:00:04.6]}
62. Kg2 {[%clk 0:00:26.2]} 62... Ke3 {[%clk 0:00:04.9]} 63. Kg1 {[%clk 0:00:14]}
63... Kf3 {[%clk 0:00:03.6]} 64. Kh2 {[%clk 0:00:13.8]} 64... Nh4 {[%clk
0:00:03.1]} 0-1

[Event "Late-Titled-Tuesday-Blitz-March-26-2024"]
[Site "Chess.com"]
[Date "2024.03.26"]
[Round "11"]
[White "BallottiLuca"]
[Black "a-z30"]
[Result "1-0"]
[WhiteElo "2370"]
[BlackElo "2462"]
[TimeControl "180+1"]
[EndTime "16:05:18 PDT"]
[Termination "BallottiLuca won by checkmate"]

1. d4 {[%clk 0:03:00.9]} 1... Nf6 {[%clk 0:03:00.9]} 2. c4 {[%clk 0:03:01.4]}
2... e6 {[%clk 0:03:01.5]} 3. Nc3 {[%clk 0:03:00.1]} 3... Bb4 {[%clk 0:03:02]}
4. Qc2 {[%clk 0:02:57.7]} 4... c5 {[%clk 0:03:01.4]} 5. dxc5 {[%clk 0:02:54.9]}
5... O-O {[%clk 0:03:01]} 6. a3 {[%clk 0:02:53.8]} 6... Bxc5 {[%clk 0:03:00.4]}
7. Nf3 {[%clk 0:02:53]} 7... b6 {[%clk 0:03:00]} 8. Bf4 {[%clk 0:02:51.5]} 8...
Bb7 {[%clk 0:02:35.8]} 9. Rd1 {[%clk 0:02:49.6]} 9... Nc6 {[%clk 0:02:05.5]} 10.
e3 {[%clk 0:02:47.3]} 10... Nh5 {[%clk 0:02:00.8]} 11. Bg3 {[%clk 0:02:45.9]}
11... f5 {[%clk 0:01:53.1]} 12. Be2 {[%clk 0:02:43.9]} 12... f4 {[%clk
0:01:41.5]} 13. Bh4 {[%clk 0:02:31.6]} 13... Be7 {[%clk 0:01:40.2]} 14. Bxe7
{[%clk 0:02:31.3]} 14... Qxe7 {[%clk 0:01:40.4]} 15. e4 {[%clk 0:02:30.7]} 15...
d6 {[%clk 0:01:21.7]} 16. O-O {[%clk 0:02:30.3]} 16... e5 {[%clk 0:01:16.1]} 17.
Nd5 {[%clk 0:02:24]} 17... Qf7 {[%clk 0:01:12.4]} 18. c5 {[%clk 0:02:06.5]}
18... bxc5 {[%clk 0:01:02.3]} 19. Ng5 {[%clk 0:01:52.9]} 19... Qg6 {[%clk
0:00:57.8]} 20. h4 {[%clk 0:01:32.7]} 20... Nd4 {[%clk 0:00:40.5]} 21. Rxd4
{[%clk 0:01:28.9]} 21... Bxd5 {[%clk 0:00:37.3]} 22. Rxd5 {[%clk 0:01:28.3]}
22... h6 {[%clk 0:00:35.4]} 23. Bxh5 {[%clk 0:01:27.7]} 23... Qxh5 {[%clk
0:00:34.5]} 24. Nf3 {[%clk 0:01:28.3]} 24... g5 {[%clk 0:00:31.5]} 25. hxg5
{[%clk 0:01:26.5]} 25... hxg5 {[%clk 0:00:32.4]} 26. Nh2 {[%clk 0:01:07.7]}
26... g4 {[%clk 0:00:25.8]} 27. Qd1 {[%clk 0:01:02.8]} 27... f3 {[%clk
0:00:24.8]} 28. Rxd6 {[%clk 0:00:55.6]} 28... g3 {[%clk 0:00:16.5]} 29. fxg3
{[%clk 0:00:51.8]} 29... f2+ {[%clk 0:00:11.5]} 30. Kh1 {[%clk 0:00:51.8]} 30...
Qxd1 {[%clk 0:00:06.4]} 31. Rdxd1 {[%clk 0:00:51.9]} 31... Rf6 {[%clk
0:00:04.4]} 32. Ng4 {[%clk 0:00:44.5]} 32... Kg7 {[%clk 0:00:04.9]} 33. Rxf2
{[%clk 0:00:38.1]} 33... Rh8+ {[%clk 0:00:01.8]} 34. Kg1 {[%clk 0:00:38.3]}
34... Rg6 {[%clk 0:00:02.7]} 35. Rd7+ {[%clk 0:00:34.9]} 35... Kg8 {[%clk
0:00:02.5]} 36. Nf6+ {[%clk 0:00:25.2]} 36... Kf8 {[%clk 0:00:03.4]} 37. Rd8+
{[%clk 0:00:13.1]} 37... Kg7 {[%clk 0:00:04.3]} 38. Rxh8 {[%clk 0:00:13.1]}
38... Kxh8 {[%clk 0:00:05.1]} 39. Nd7 {[%clk 0:00:12.1]} 39... Rxg3 {[%clk
0:00:05.7]} 40. Nxc5 {[%clk 0:00:10.9]} 40... Re3 {[%clk 0:00:04.5]} 41. Rc2
{[%clk 0:00:10.6]} 41... Kg7 {[%clk 0:00:04.5]} 42. b4 {[%clk 0:00:10.8]} 42...
Kg6 {[%clk 0:00:05]} 43. a4 {[%clk 0:00:10.3]} 43... Kg5 {[%clk 0:00:05.3]} 44.
Kf2 {[%clk 0:00:10.3]} 44... Ra3 {[%clk 0:00:04.2]} 45. a5 {[%clk 0:00:10.2]}
45... Kf4 {[%clk 0:00:05.1]} 46. Rb2 {[%clk 0:00:06.4]} 46... Rc3 {[%clk
0:00:04.2]} 47. a6 {[%clk 0:00:06]} 47... Rc1 {[%clk 0:00:02.9]} 48. Nd3+ {[%clk
0:00:05.3]} 48... Kxe4 {[%clk 0:00:02.1]} 49. Nxc1 {[%clk 0:00:06.2]} 49... Kd4
{[%clk 0:00:02.7]} 50. Ne2+ {[%clk 0:00:06.4]} 50... Kd3 {[%clk 0:00:02.7]} 51.
b5 {[%clk 0:00:06.6]} 51... e4 {[%clk 0:00:03.6]} 52. b6 {[%clk 0:00:06.6]}
52... e3+ {[%clk 0:00:04.5]} 53. Kf3 {[%clk 0:00:05.9]} 53... axb6 {[%clk
0:00:05.4]} 54. a7 {[%clk 0:00:05.8]} 54... Kc4 {[%clk 0:00:06.3]} 55. a8=Q
{[%clk 0:00:06.1]} 55... b5 {[%clk 0:00:06.9]} 56. Qc8+ {[%clk 0:00:06.2]} 56...
Kd5 {[%clk 0:00:07.8]} 57. Qd7+ {[%clk 0:00:06]} 57... Ke5 {[%clk 0:00:08]} 58.
Qd4+ {[%clk 0:00:05.8]} 58... Ke6 {[%clk 0:00:08]} 59. Qxe3+ {[%clk 0:00:05.8]}
59... Kf5 {[%clk 0:00:07.8]} 60. Qd3+ {[%clk 0:00:05.8]} 60... Ke6 {[%clk
0:00:07.5]} 61. Qb3+ {[%clk 0:00:05.6]} 61... Kd7 {[%clk 0:00:08.4]} 62. Rd2+
{[%clk 0:00:05.5]} 62... Kc8 {[%clk 0:00:09.3]} 63. Qg8+ {[%clk 0:00:05.3]}
63... Kc7 {[%clk 0:00:10.2]} 64. Qf7+ {[%clk 0:00:05.3]} 64... Kc6 {[%clk
0:00:10.4]} 65. Qe6+ {[%clk 0:00:05.3]} 65... Kc5 {[%clk 0:00:11.3]} 66. Qd5+
{[%clk 0:00:05.2]} 66... Kb4 {[%clk 0:00:12.2]} 67. Rb2+ {[%clk 0:00:05.5]}
67... Ka5 {[%clk 0:00:13.1]} 68. Qxb5# {[%clk 0:00:05.1]} 1-0

[Event "Late-Titled-Tuesday-Blitz-March-26-2024"]
[Site "Chess.com"]
[Date "2024.03.26"]
[Round "11"]
[White "Oleg_Papayan"]
[Black "eljanov"]
[Result "1/2-1/2"]
[WhiteElo "2674"]
[BlackElo "2903"]
[TimeControl "180+1"]
[EndTime "16:05:19 PDT"]
[Termination "Game drawn by repetition"]

1. e4 {[%clk 0:03:00.9]} 1... c6 {[%clk 0:02:59.5]} 2. d4 {[%clk 0:03:00.6]}
2... d5 {[%clk 0:02:59.9]} 3. Nc3 {[%clk 0:03:00.7]} 3... dxe4 {[%clk 0:03:00]}
4. Nxe4 {[%clk 0:03:01.6]} 4... Nf6 {[%clk 0:03:00]} 5. Nxf6+ {[%clk 0:03:02.2]}
5... exf6 {[%clk 0:03:00.9]} 6. Bd3 {[%clk 0:03:02.5]} 6... Qxd4 {[%clk
0:02:59.2]} 7. Nf3 {[%clk 0:03:02.7]} 7... Qd8 {[%clk 0:02:58.4]} 8. O-O {[%clk
0:03:02.8]} 8... Be6 {[%clk 0:02:54.7]} 9. Re1 {[%clk 0:03:01.2]} 9... Be7
{[%clk 0:02:53.7]} 10. Nh4 {[%clk 0:03:00.9]} 10... g6 {[%clk 0:02:49.8]} 11.
Bh6 {[%clk 0:02:56.7]} 11... Rg8 {[%clk 0:01:43.9]} 12. Qe2 {[%clk 0:02:47.2]}
12... Nd7 {[%clk 0:01:39.4]} 13. Rad1 {[%clk 0:02:36.6]} 13... Qc7 {[%clk
0:01:39.5]} 14. Bc4 {[%clk 0:02:32.3]} 14... Ne5 {[%clk 0:01:30.8]} 15. Bxe6
{[%clk 0:02:29.3]} 15... fxe6 {[%clk 0:01:31.7]} 16. Nf3 {[%clk 0:02:07.9]}
16... Nxf3+ {[%clk 0:01:28.7]} 17. Qxf3 {[%clk 0:02:08]} 17... Rd8 {[%clk
0:01:03.4]} 18. Rxe6 {[%clk 0:01:55]} 18... Rxd1+ {[%clk 0:00:59.7]} 19. Qxd1
{[%clk 0:01:55.9]} 19... Qd7 {[%clk 0:00:55.6]} 20. Qe2 {[%clk 0:01:55.9]} 20...
Kf7 {[%clk 0:00:55.9]} 21. Re3 {[%clk 0:01:54.4]} 21... Rd8 {[%clk 0:00:53]} 22.
Rd3 {[%clk 0:01:47.9]} 22... Qe6 {[%clk 0:00:53.1]} 23. Qxe6+ {[%clk 0:01:39.7]}
23... Kxe6 {[%clk 0:00:52.6]} 24. Rxd8 {[%clk 0:01:40.6]} 24... Bxd8 {[%clk
0:00:53.1]} 25. Be3 {[%clk 0:01:39.5]} 25... a5 {[%clk 0:00:53.4]} 26. Kf1
{[%clk 0:01:35.3]} 26... a4 {[%clk 0:00:53.3]} 27. Ke2 {[%clk 0:01:28.3]} 27...
h5 {[%clk 0:00:52.3]} 28. Kd3 {[%clk 0:01:27.3]} 28... b5 {[%clk 0:00:48.6]} 29.
b3 {[%clk 0:01:26.4]} 29... Bc7 {[%clk 0:00:42.7]} 30. bxa4 {[%clk 0:01:25.5]}
30... bxa4 {[%clk 0:00:42.9]} 31. h3 {[%clk 0:01:25.3]} 31... Kd5 {[%clk
0:00:43.3]} 32. g4 {[%clk 0:01:18.5]} 32... f5 {[%clk 0:00:43]} 33. f3 {[%clk
0:01:09.9]} 33... Bd6 {[%clk 0:00:38.9]} 34. c4+ {[%clk 0:01:02.3]} 34... Ke6
{[%clk 0:00:38.8]} 35. c5 {[%clk 0:00:47.7]} 35... Bc7 {[%clk 0:00:38.9]} 36.
gxh5 {[%clk 0:00:37.3]} 36... gxh5 {[%clk 0:00:38.7]} 37. Kc4 {[%clk 0:00:38]}
37... Ba5 {[%clk 0:00:36.3]} 38. Bf4 {[%clk 0:00:36.4]} 38... Be1 {[%clk
0:00:33.1]} 39. Bc7 {[%clk 0:00:31.4]} 39... Kf6 {[%clk 0:00:30.7]} 40. Bd8+
{[%clk 0:00:24.5]} 40... Ke5 {[%clk 0:00:28.9]} 41. Bc7+ {[%clk 0:00:24.6]}
41... Ke6 {[%clk 0:00:29.3]} 42. Bd6 {[%clk 0:00:16.8]} 42... Kf6 {[%clk
0:00:23.3]} 43. Bf4 {[%clk 0:00:16.5]} 43... Ba5 {[%clk 0:00:19.5]} 44. Kd4
{[%clk 0:00:16.3]} 44... Ke6 {[%clk 0:00:17.1]} 45. Kc4 {[%clk 0:00:16.4]} 45...
Be1 {[%clk 0:00:16.6]} 46. Kd4 {[%clk 0:00:16.4]} 46... Kf6 {[%clk 0:00:14.6]}
47. Kc4 {[%clk 0:00:14.8]} 47... Ke7 {[%clk 0:00:13.7]} 48. Kd4 {[%clk
0:00:11.4]} 48... Ke6 {[%clk 0:00:13.3]} 49. Kc4 {[%clk 0:00:11.8]} 49... Ba5
{[%clk 0:00:08.4]} 50. Bg3 {[%clk 0:00:10.5]} 50... Bd2 {[%clk 0:00:06.3]} 51.
Bc7 {[%clk 0:00:08.7]} 51... Kf6 {[%clk 0:00:05.5]} 52. Bd8+ {[%clk 0:00:08.8]}
52... Ke5 {[%clk 0:00:04.5]} 53. Bc7+ {[%clk 0:00:09.2]} 53... Ke6 {[%clk
0:00:04.9]} 54. Kd3 {[%clk 0:00:08.3]} 54... Be1 {[%clk 0:00:04.3]} 55. Kc4
{[%clk 0:00:08.7]} 55... Kf7 {[%clk 0:00:03.3]} 56. Kd4 {[%clk 0:00:06.9]} 56...
Kf6 {[%clk 0:00:03.2]} 57. Bd8+ {[%clk 0:00:06.8]} 57... Ke6 {[%clk 0:00:03.2]}
58. Bc7 {[%clk 0:00:07]} 58... Bf2+ {[%clk 0:00:02.4]} 59. Kc4 {[%clk
0:00:07.4]} 59... Be1 {[%clk 0:00:02.8]} 60. Kd4 {[%clk 0:00:05.7]} 60... Bd2
{[%clk 0:00:02.1]} 61. Kd3 {[%clk 0:00:05.4]} 61... Bb4 {[%clk 0:00:01.8]} 62.
Kc4 {[%clk 0:00:05.8]} 62... Be1 {[%clk 0:00:01.9]} 1/2-1/2

[Event "Late-Titled-Tuesday-Blitz-March-26-2024"]
[Site "Chess.com"]
[Date "2024.03.26"]
[Round "11"]
[White "dennisodessa"]
[Black "BilicVladimir"]
[Result "1-0"]
[WhiteElo "2556"]
[BlackElo "2647"]
[TimeControl "180+1"]
[EndTime "16:05:24 PDT"]
[Termination "dennisodessa won by resignation"]

1. d4 {[%clk 0:03:00]} 1... d5 {[%clk 0:02:58.8]} 2. c4 {[%clk 0:03:00.1]} 2...
c6 {[%clk 0:02:59]} 3. Nf3 {[%clk 0:02:59.9]} 3... Nf6 {[%clk 0:02:59.6]} 4. e3
{[%clk 0:03:00.7]} 4... a6 {[%clk 0:03:00]} 5. Nbd2 {[%clk 0:03:00.6]} 5... b5
{[%clk 0:03:00.4]} 6. cxd5 {[%clk 0:03:01.3]} 6... cxd5 {[%clk 0:03:00.2]} 7.
Bd3 {[%clk 0:03:02.2]} 7... Nc6 {[%clk 0:03:00.2]} 8. O-O {[%clk 0:03:02.7]}
8... Bb7 {[%clk 0:03:00.8]} 9. Nb3 {[%clk 0:03:02.9]} 9... e6 {[%clk 0:03:00.8]}
10. Bd2 {[%clk 0:03:03.2]} 10... Bd6 {[%clk 0:02:59.3]} 11. Rc1 {[%clk
0:03:02.4]} 11... Nd7 {[%clk 0:02:59.2]} 12. Nc5 {[%clk 0:03:02.1]} 12... Nxc5
{[%clk 0:02:57.9]} 13. dxc5 {[%clk 0:03:03]} 13... Bc7 {[%clk 0:02:58]} 14. a4
{[%clk 0:02:49.4]} 14... b4 {[%clk 0:02:53.8]} 15. Nd4 {[%clk 0:02:49.2]} 15...
a5 {[%clk 0:02:40.3]} 16. Bb5 {[%clk 0:02:48.8]} 16... Qd7 {[%clk 0:02:33.6]}
17. e4 {[%clk 0:02:07.1]} 17... O-O {[%clk 0:02:32.4]} 18. Be3 {[%clk
0:02:00.7]} 18... Rfc8 {[%clk 0:02:22.5]} 19. Qg4 {[%clk 0:01:01]} 19... Be5
{[%clk 0:02:13.3]} 20. exd5 {[%clk 0:00:48]} 20... Qxd5 {[%clk 0:02:07.3]} 21.
Nxc6 {[%clk 0:00:47.8]} 21... Bxc6 {[%clk 0:02:03.8]} 22. Rfd1 {[%clk
0:00:48.4]} 22... Qe4 {[%clk 0:01:56.6]} 23. Qxe4 {[%clk 0:00:42.8]} 23... Bxe4
{[%clk 0:01:56.4]} 24. Bd4 {[%clk 0:00:43.7]} 24... Bf4 {[%clk 0:01:52.5]} 25.
Be3 {[%clk 0:00:42.6]} 25... Be5 {[%clk 0:01:48.8]} 26. Bd4 {[%clk 0:00:42.6]}
26... Bf4 {[%clk 0:01:40.4]} 27. Be3 {[%clk 0:00:42.5]} 27... Bxe3 {[%clk
0:01:40.6]} 28. fxe3 {[%clk 0:00:43.4]} 28... Kf8 {[%clk 0:01:33.2]} 29. Rd7
{[%clk 0:00:34.6]} 29... Bc6 {[%clk 0:01:14.8]} 30. Rd6 {[%clk 0:00:34.6]} 30...
Be8 {[%clk 0:01:14.2]} 31. e4 {[%clk 0:00:30.7]} 31... Rc7 {[%clk 0:01:08.9]}
32. e5 {[%clk 0:00:28.7]} 32... Ke7 {[%clk 0:01:09]} 33. Kf2 {[%clk 0:00:18.9]}
33... f6 {[%clk 0:01:07.7]} 34. Ke3 {[%clk 0:00:16.7]} 34... fxe5 {[%clk
0:01:05.5]} 35. Ke4 {[%clk 0:00:12.5]} 35... Rac8 {[%clk 0:01:02.3]} 36. Bxe8
{[%clk 0:00:13]} 36... Rxe8 {[%clk 0:00:53.6]} 37. Kxe5 {[%clk 0:00:13.2]} 37...
Kf7 {[%clk 0:00:43.4]} 38. c6 {[%clk 0:00:13.8]} 38... Ree7 {[%clk 0:00:35.6]}
39. Rf1+ {[%clk 0:00:14.2]} 39... Ke8 {[%clk 0:00:34.9]} 40. Rc1 {[%clk
0:00:15.1]} 40... Kf7 {[%clk 0:00:24]} 41. Rd8 {[%clk 0:00:15.2]} 41... Kg6
{[%clk 0:00:21.3]} 42. Kd6 {[%clk 0:00:14.6]} 42... e5 {[%clk 0:00:20]} 43. Re1
{[%clk 0:00:14.2]} 43... Kf6 {[%clk 0:00:17]} 44. Rf1+ {[%clk 0:00:12.9]} 44...
Kg6 {[%clk 0:00:16.7]} 45. Rd7 {[%clk 0:00:13.8]} 45... Rxc6+ {[%clk 0:00:09.5]}
46. Kxc6 {[%clk 0:00:13.6]} 46... Re6+ {[%clk 0:00:09.9]} 47. Rd6 {[%clk
0:00:14.3]} 47... Rf6 {[%clk 0:00:10.4]} 48. Rdxf6+ {[%clk 0:00:13.4]} 48...
gxf6 {[%clk 0:00:11.3]} 49. Kd5 {[%clk 0:00:14.3]} 49... Kf7 {[%clk 0:00:11.2]}
50. b3 {[%clk 0:00:12.2]} 50... Ke7 {[%clk 0:00:11.2]} 51. g4 {[%clk 0:00:09.9]}
51... h6 {[%clk 0:00:10.7]} 52. h4 {[%clk 0:00:10.8]} 52... Kd7 {[%clk
0:00:11.6]} 53. h5 {[%clk 0:00:11]} 53... Ke7 {[%clk 0:00:12]} 54. Ke4 {[%clk
0:00:10.8]} 54... Ke6 {[%clk 0:00:12.2]} 55. Rc1 {[%clk 0:00:11.5]} 55... Kd6
{[%clk 0:00:12.5]} 56. Rc4 {[%clk 0:00:11.6]} 56... Kd7 {[%clk 0:00:12.4]} 57.
Kf5 {[%clk 0:00:11.9]} 57... Kd6 {[%clk 0:00:13.3]} 58. Kxf6 {[%clk 0:00:11.9]}
58... Kd5 {[%clk 0:00:14.2]} 59. g5 {[%clk 0:00:12.4]} 59... hxg5 {[%clk
0:00:13.5]} 60. Kxg5 {[%clk 0:00:13.3]} 60... e4 {[%clk 0:00:14.4]} 61. h6
{[%clk 0:00:13.7]} 61... e3 {[%clk 0:00:15.3]} 62. h7 {[%clk 0:00:14.6]} 62...
e2 {[%clk 0:00:14.9]} 63. Rc1 {[%clk 0:00:15.1]} 63... Kd4 {[%clk 0:00:15.8]}
64. h8=Q+ {[%clk 0:00:15.2]} 64... Kd3 {[%clk 0:00:16.7]} 65. Qb2 {[%clk
0:00:15.2]} 65... e1=Q {[%clk 0:00:15]} 66. Qc2+ {[%clk 0:00:14.8]} 66... Kd4
{[%clk 0:00:14.7]} 67. Rxe1 {[%clk 0:00:15]} 1-0

[Event "Late-Titled-Tuesday-Blitz-March-26-2024"]
[Site "Chess.com"]
[Date "2024.03.26"]
[Round "11"]
[White "BozeKat"]
[Black "martinmena"]
[Result "0-1"]
[WhiteElo "2081"]
[BlackElo "2186"]
[TimeControl "180+1"]
[EndTime "16:05:29 PDT"]
[Termination "martinmena won on time"]

1. c4 {[%clk 0:03:00.9]} 1... e6 {[%clk 0:02:59.1]} 2. e4 {[%clk 0:02:56.7]}
2... c6 {[%clk 0:02:47]} 3. Nc3 {[%clk 0:02:49]} 3... d5 {[%clk 0:02:47]} 4.
cxd5 {[%clk 0:02:46.6]} 4... cxd5 {[%clk 0:02:46.6]} 5. exd5 {[%clk 0:02:41.8]}
5... exd5 {[%clk 0:02:47.3]} 6. d4 {[%clk 0:02:41.1]} 6... Nf6 {[%clk 0:02:45]}
7. Bg5 {[%clk 0:02:40.1]} 7... Be7 {[%clk 0:02:44.6]} 8. Nf3 {[%clk 0:02:36.2]}
8... O-O {[%clk 0:02:43.7]} 9. Be2 {[%clk 0:02:35.4]} 9... Bg4 {[%clk
0:02:43.5]} 10. h3 {[%clk 0:02:34.1]} 10... Bh5 {[%clk 0:02:41.2]} 11. O-O
{[%clk 0:02:31.7]} 11... Nc6 {[%clk 0:02:40.4]} 12. Re1 {[%clk 0:02:25.9]} 12...
h6 {[%clk 0:02:34]} 13. Bh4 {[%clk 0:02:21.3]} 13... Ne4 {[%clk 0:02:29.4]} 14.
Bxe7 {[%clk 0:02:12.9]} 14... Nxc3 {[%clk 0:01:53]} 15. Bxd8 {[%clk 0:01:54.2]}
15... Nxd1 {[%clk 0:01:52]} 16. Bh4 {[%clk 0:01:39]} 16... Nxb2 {[%clk 0:01:43]}
17. Rab1 {[%clk 0:01:38.7]} 17... Nc4 {[%clk 0:01:40.6]} 18. Rxb7 {[%clk
0:01:35.1]} 18... Rab8 {[%clk 0:01:34.3]} 19. Reb1 {[%clk 0:01:31.4]} 19... Bxf3
{[%clk 0:01:28.8]} 20. Rxb8 {[%clk 0:01:23.6]} 20... Rxb8 {[%clk 0:01:12.8]} 21.
Rxb8+ {[%clk 0:01:23.1]} 21... Nxb8 {[%clk 0:01:13.7]} 22. Bxf3 {[%clk
0:01:23.3]} 22... Nb6 {[%clk 0:01:06.5]} 23. Bd8 {[%clk 0:01:19]} 23... Nc6
{[%clk 0:01:05.2]} 24. Bxb6 {[%clk 0:01:18.8]} 24... axb6 {[%clk 0:01:06.1]} 25.
Bxd5 {[%clk 0:01:18.9]} 25... Nxd4 {[%clk 0:01:07]} 26. Kf1 {[%clk 0:01:17.5]}
26... Kf8 {[%clk 0:01:07.5]} 27. Ke1 {[%clk 0:01:17.3]} 27... Ke7 {[%clk
0:01:07.9]} 28. Kd2 {[%clk 0:01:17.5]} 28... f6 {[%clk 0:01:08.3]} 29. Kd3
{[%clk 0:01:16.2]} 29... Nf5 {[%clk 0:01:04.6]} 30. Kc4 {[%clk 0:01:11.7]} 30...
Kd6 {[%clk 0:01:02.6]} 31. Be4 {[%clk 0:01:09.3]} 31... Ne7 {[%clk 0:00:56]} 32.
Kb5 {[%clk 0:01:06.4]} 32... Kc7 {[%clk 0:00:56.4]} 33. a4 {[%clk 0:01:06.3]}
33... Nc8 {[%clk 0:00:55.9]} 34. Bf3 {[%clk 0:01:00.8]} 34... Nd6+ {[%clk
0:00:55.1]} 35. Kb4 {[%clk 0:01:01.2]} 35... Kd7 {[%clk 0:00:53.1]} 36. Kc3
{[%clk 0:00:56.6]} 36... Ke6 {[%clk 0:00:52.3]} 37. Kd4 {[%clk 0:00:51]} 37...
Nf5+ {[%clk 0:00:47.6]} 38. Kc4 {[%clk 0:00:50.5]} 38... Nd6+ {[%clk 0:00:47.3]}
39. Kd4 {[%clk 0:00:50.1]} 39... g6 {[%clk 0:00:35.9]} 40. Bd5+ {[%clk
0:00:44.5]} 40... Kd7 {[%clk 0:00:29.1]} 41. Bf3 {[%clk 0:00:35.5]} 41... Nf5+
{[%clk 0:00:14.2]} 42. Kd5 {[%clk 0:00:33.4]} 42... Ne7+ {[%clk 0:00:14.2]} 43.
Kc4 {[%clk 0:00:31.5]} 43... Kd6 {[%clk 0:00:14.5]} 44. Kb5 {[%clk 0:00:29.9]}
44... Kc7 {[%clk 0:00:14.1]} 45. Kc4 {[%clk 0:00:25.2]} 45... Nf5 {[%clk
0:00:14.1]} 46. Kd5 {[%clk 0:00:23]} 46... Ng7 {[%clk 0:00:12.6]} 47. Be4 {[%clk
0:00:20.7]} 47... g5 {[%clk 0:00:11.4]} 48. g4 {[%clk 0:00:15.4]} 48... Kd7
{[%clk 0:00:10.8]} 49. Kc4 {[%clk 0:00:14.8]} 49... Ne8 {[%clk 0:00:06.8]} 50.
Kd5 {[%clk 0:00:11.1]} 50... Nc7+ {[%clk 0:00:06.5]} 51. Kc4 {[%clk 0:00:10.2]}
51... Kd6 {[%clk 0:00:06.7]} 52. Kd4 {[%clk 0:00:07.3]} 52... Ne6+ {[%clk
0:00:05.8]} 53. Ke3 {[%clk 0:00:07.5]} 53... Nf4 {[%clk 0:00:05.5]} 54. Bf5
{[%clk 0:00:03.5]} 54... Nxh3 {[%clk 0:00:05.6]} 55. Kd4 {[%clk 0:00:03.2]}
55... Nf4 {[%clk 0:00:05.9]} 56. Kc4 {[%clk 0:00:02.6]} 56... Nd5 {[%clk
0:00:04.2]} 0-1